Cogmind - Beta 13 @@@ ROGUE MODE // 2024.06.25 @ 01:49:11 Player: CanadianCogs Result: Destroyed by G-47 Trooper with Particle Gun Performance ------------- Evolutions (2) 1000 Regions Visited (4) 800 Robots Destroyed (40) 200 Value Destroyed (1150) 1150 Prototype IDs (0) 0 Alien Tech Used (0) 0 Bonus (-1) -1 TOTAL SCORE: 3149 Bonus ------- Follower Combat Kills 35 Friendly Fire -36 Cogmind --------- Core Integrity 0/550 Matter 300/300 Energy 98/100 System Corruption 0% Temperature Cool (9) Movement Core (50) Location -8/Materials Parts ------- > --- POWER (1) -------- (None) > --- PROPULSION (2) --- (None) > --- UTILITY (6) ------ (None) > --- WEAPON (2) ------- (None) > --- INVENTORY (5) ---- Cooling System Cooling System Gauss Rifle Gauss Rifle Gauss Rifle Peak State ------------ > --- POWER ------------ Light Ion Engine > --- PROPULSION ------- Gravmag System Gravmag System > --- UTILITY ---------- Cooling System Medium Storage Unit Light Armor Plating Light Armor Plating Hacking Suite Hacking Suite > --- WEAPON ----------- Datajack Plasma Flamer > --- INVENTORY -------- Gravmag System Gravmag System Cooling System Cooling System Light Armor Plating Light Armor Plating Gauss Rifle Gauss Rifle Gauss Rifle Gauss Rifle [Rating: 29] Favorites ----------- Power Light Ion Engine Engine Light Ion Engine Propulsion Aluminum Leg Leg Aluminum Leg Hover Unit Gravmag System Utility Medium Storage Unit Device Cooling System Storage Medium Storage Unit Hackware Hacking Suite Protection Weapon Shielding Weapon Beam Cannon Energy Gun EM Shotgun Energy Cannon Beam Cannon Ballistic Gun Light Assault Rifle Special Weapon Plasma Flamer Special Melee Weapon Datajack Build | -11 -10 -10 -9 -8 ------- Run | Yrd Mat Min Mat Mat Slots Evolved 4 | . . . 2 2 Power . | . . . . . Propulsion . | . . . . . Utility 4 | . . . 2 2 Weapon . | . . . . . Parts Attached 46 | 6 18 . 9 13 Power 7 | 1 3 . 3 . Engine 7 | 1 3 . 3 . Core . | . . . . . Reactor . | . . . . . Propulsion 12 | 2 3 . 3 4 Treads . | . . . . . Leg 8 | 2 3 . 3 . Wheel . | . . . . . Hover 4 | . . . . 4 Flight . | . . . . . Utility 15 | 1 4 . 3 7 Device 3 | . 1 . 1 1 Storage 2 | 1 1 . . . Processor . | . . . . . Hackware 2 | . 1 . 1 . Protection 8 | . 1 . 1 6 Artifact . | . . . . . Weapon 12 | 2 8 . . 2 Energy Gun 3 | . 3 . . . Energy Cannon 5 | . 5 . . . Ballistic Gun 2 | 2 . . . . Ballistic Cannon . | . . . . . Launcher . | . . . . . Special Weapon 1 | . . . . 1 Impact Weapon . | . . . . . Slashing Weapon . | . . . . . Piercing Weapon . | . . . . . Special Melee Weapon 1 | . . . . 1 Unidentified Prototypes . | . . . . . Corrupted Parts 1 | . 1 . . . System Corruption 2 | . 2 . . . Parts Lost 17 | . 1 . 4 12 Power 1 | . . . . 1 Propulsion 7 | . . . 3 4 Utility 5 | . . . . 5 Weapon 4 | . 1 . 1 2 Highest Loss Streak 7 | . 1 . 3 7 To Critical Strikes . | . . . . . Average Slot Usage (%) 95 | . 97 100 87 85 Engine 12 | . 13 14 11 7 Leg 23 | . 27 28 13 1 Hover 1 | . . . . 11 Device 4 | . 3 . 11 8 Storage 13 | . 14 14 11 9 Hackware 6 | . 1 14 16 18 Protection 7 | . 7 . 5 17 Energy Gun 4 | . 6 . . . Energy Cannon 17 | . 18 28 18 1 Ballistic Gun 1 | . 2 . . . Naked Turns . | . . . . . Heaviest Build 30 | 10 21 19 30 27 Greatest Support 20 | 20 20 20 20 18 Greatest Overweight (x) 7 | . 1 . 7 4 Average Overweight (x) . | . . . 1 1 Largest Inventory Capacity 10 | 8 10 10 10 10 Average Capacity 9 | 7 9 10 10 10 Most Carried 10 | 5 10 10 10 10 Average Carried 7 | . 8 9 9 8 Final Capacity 10 | 8 10 10 10 5 Final Carried 10 | . 10 10 9 5 Class Distribution -------------------- 68% | Mutant 17% | Scavenger-Mutant 13% | Hacker-Mutant Dominant Class ---------------- Mutant | -10/Materials Scavenger-Mutant | -10/Mines Mutant | -9/Materials Hacker-Mutant | -8/Materials Resources | -11 -10 -10 -9 -8 ----------- Run | Yrd Mat Min Mat Mat Matter Collected 635 | 251 220 . 55 109 Remotely . | . . . . . Salvage Created 1314 | . 703 113 446 52 Parts 99 | . 57 11 29 2 Haulers Intercepted 2 | . 2 . . . Recyclers Shooed . | . . . . . Parts Field Recycled . | . . . . . Retrieved Matter . | . . . . . Parts Self-Destructed . | . . . . . Prevented . | . . . . . Kills | -11 -10 -10 -9 -8 ------- Run | Yrd Mat Min Mat Mat Combat Hostiles Destroyed 32 | . 16 2 11 3 Guns 5 | . 5 . . . Cannons 24 | . 9 2 10 3 AOE 2 | . 2 . . . Classes Destroyed 8 | . 5 1 2 . Hauler 2 | . 2 . . . Mechanic 1 | . . . 1 . Operator 2 | . 1 . 1 . Watcher 3 | . 3 . . . Swarmer 9 | . 6 . 3 . Grunt 19 | . 10 . 6 3 Duelist 1 | . . . 1 . Sentry 3 | . . 2 1 . Best Kill Streak 6 | . 4 2 6 2 Combat Bots Only 5 | . 4 2 5 2 Max Kills in Single Turn 2 | . 1 1 2 1 Gunslinging . | . . . . . Exploded 1 | . 1 . . . Melee . | . . . . . Uniques/NPCs Destroyed . | . . . . . Combat | -11 -10 -10 -9 -8 -------- Run | Yrd Mat Min Mat Mat Hostile Shots Fired 236 | . 45 4 56 131 Missed 79 | . 16 2 16 45 Damage Taken 2288 | . 272 66 563 1387 Core 653 | . 34 . 66 553 Absorbed by Shields . | . . . . . Redirected to Shielding 14 | . 14 . . . Regen/Repaired (Parts) 58 | . 58 . . . Core Remaining (%) 89 | 100 . 86 83 . Volleys Fired 108 | 5 53 2 29 19 Largest 2 | 2 2 2 2 1 Hottest 120 | 40 120 120 120 100 Shots Fired 179 | 10 94 4 52 19 Gun 61 | 10 51 . . . Cannon 99 | . 43 4 52 . Launcher . | . . . . . Special 19 | . . . . 19 Kinetic 46 | 10 36 . . . Thermal 102 | . 27 4 52 19 Explosive . | . . . . . Electromagnetic 31 | . 31 . . . Robot Hit Streak 11 | 1 6 9 11 6 Robot Miss Streak 5 | 1 4 . 5 2 Penetration Max . | . . . . . Secondary Targets 1 | . 1 . . . Max Gunslinging Chain 1 | . 1 . . . Shots Hit Robots 103 | 4 49 4 32 14 Core Hits 60 | 1 31 4 14 10 Critical Kills . | . . . . . Critical Parts Destroyed . | . . . . . Critical Strikes 3 | . . . . 3 Burn 3 | . . . . 3 Melee Attacks . | . . . . . Impact . | . . . . . Slashing . | . . . . . Piercing . | . . . . . Sneak Attacks . | . . . . . Combat Hostiles . | . . . . . Follow-up Attacks . | . . . . . Damage Inflicted 2005 | 55 944 76 706 224 Guns 253 | 29 224 . . . Cannons 1358 | . 583 69 706 . Explosions 126 | . 126 . . . Melee . | . . . . . Ramming 58 | 26 11 7 . 14 Kinetic 175 | 29 146 . . . Thermal 1310 | . 325 69 706 210 Explosive . | . . . . . Electromagnetic 462 | . 462 . . . Impact . | . . . . . Slashing . | . . . . . Piercing . | . . . . . Highest Corruption 4 | . 4 4 . . Average Corruption 3 | . 3 4 . . Corruption Purged . | . . . . . Corruption Blocked . | . . . . . Effects 14 | . 9 5 . . Message Errors 4 | . 2 2 . . Matter Fused 3 | . 3 . . . Heat Flow Errors 2 | . 2 . . . Energy Discharges 2 | . 1 1 . . Data Loss (minor) 2 | . . 2 . . Misfires 1 | . 1 . . . Overload Shots . | . . . . . Overflow Damage 10 | . 10 . . . Projectiles 10 | . 10 . . . Explosions . | . . . . . Melee . | . . . . . Knockbacks 1 | 1 . . . . Impact 1 | 1 . . . . Kinetic . | . . . . . Secondary . | . . . . . Self-Inflicted Damage 6 | . . . . 6 Shots . | . . . . . Rammed 3 | . . . . 3 Targets Rammed 19 | 10 5 1 . 3 Kicked 16 | 10 5 1 . . Crushed . | . . . . . Highest Temperature 224 | . 224 120 24 142 Average Temperature 51 | . 57 63 7 45 Received Heat Transfer 969 | . 81 . 132 756 Siege Activations . | . . . . . Robots Corrupted . | . . . . . Combat Hostiles . | . . . . . Parts Fried 1 | . 1 . . . Impact Corruptions . | . . . . . Robots Melted 1 | . . . 1 . Combat Hostiles 1 | . . . 1 . Parts Melted 5 | . . . 5 . Heat Transferred 3891 | . 583 148 1480 1680 Parts Sabotaged . | . . . . . Parts Stolen . | . . . . . Parts Stripped . | . . . . . Power Chain Reactions 3 | . 3 . . . Alert | -11 -10 -10 -9 -8 ------- Run | Yrd Mat Min Mat Mat Peak Influence 289 | . 252 146 289 127 Initial 91 | . . 91 33 37 Average 107 | . 108 128 191 73 Maximum Alert Level 1 | . 1 . 1 . Low Security (%) 88 | 100 90 100 47 100 Level 1 11 | . 9 . 52 . Level 2 . | . . . . . Level 3 . | . . . . . Level 4 . | . . . . . Level 5 . | . . . . . High Security . | . . . . . Max Security . | . . . . . Squads Dispatched 12 | . 6 . 2 4 Investigation 7 | . 5 . . 2 Extermination . | . . . . . Reinforcement 5 | . 1 . 2 2 Assault . | . . . . . Garrison . | . . . . . Intercept . | . . . . . Searches Triggered . | . . . . . Construction Impeded . | . . . . . Haulers Reinforced . | . . . . . Active Scanning Responses . | . . . . . Cargo Convoy Interrupts . | . . . . . Stealth | -11 -10 -10 -9 -8 --------- Run | Yrd Mat Min Mat Mat Distress Signals 3 | . 3 . . . Communications Jammed . | . . . . . Distress Signals . | . . . . . Times Spotted 62 | . 27 2 18 15 Peak Tracking Total 8 | . 4 2 5 8 Tactical Retreats 4 | . 2 . . 2 Traps | -11 -10 -10 -9 -8 ------- Run | Yrd Mat Min Mat Mat Traps Triggered 3 | . 2 . . 1 Indirectly . | . . . . . Trap Hack Attempts . | . . . . . Triggered . | . . . . . Disarmed . | . . . . . Reprogrammed 1 | . 1 . . . Reused . | . . . . . Traps Extracted . | . . . . . Installed . | . . . . . Triggered . | . . . . . Machines | -11 -10 -10 -9 -8 ---------- Run | Yrd Mat Min Mat Mat Machines Disabled 1 | . 1 . . . Max in Single Turn 1 | . 1 . . . Machines Repaired . | . . . . . Machines Dismantled . | . . . . . Machines Sabotaged 1 | . 1 . . . Overloaded Fab Kills . | . . . . . Hacking | -11 -10 -10 -9 -8 --------- Run | Yrd Mat Min Mat Mat Machines Accessed 14 | . 10 . 2 2 Terminals 11 | . 7 . 2 2 Fabricators . | . . . . . Repair Stations 1 | . 1 . . . Recycling Units 2 | . 2 . . . Scanalyzers . | . . . . . Garrison Access . | . . . . . Total Hacks 64 | . 53 . 5 6 Successful 45 | . 40 . 2 3 Failed 18 | . 12 . 3 3 Catastrophic 2 | . 2 . . . Database Lockouts 1 | . 1 . . . Manual 40 | . 28 . 5 7 Terminals 51 | . 40 . 5 6 Fabricators . | . . . . . Repair Stations 5 | . 5 . . . Recycling Units 8 | . 8 . . . Scanalyzers . | . . . . . Garrison Access . | . . . . . Terminal Hacks 20 | . 17 . . 3 Record 4 | . 4 . . . Robot Schematic 4 | . 4 . . . Robot Analysis 4 | . 1 . . 3 Alert Level 2 | . 2 . . . Locate Traps 2 | . 2 . . . Reprogram Traps 1 | . 1 . . . Maintenance Status 1 | . 1 . . . Hauler Manifests 1 | . 1 . . . Registered Prototypes 1 | . 1 . . . Fabricator Hacks . | . . . . . Repair Station Hacks 5 | . 5 . . . Scan Component 3 | . 3 . . . Repair 2 | . 2 . . . Recycling Unit Hacks 6 | . 6 . . . Report Inventory 2 | . 2 . . . Retrieve Matter 2 | . 2 . . . Retrieve Components 2 | . 2 . . . Scanalyzer . | . . . . . Garrison Access Hacks . | . . . . . Unauthorized Hacks 14 | . 12 . 2 . Terminals 12 | . 10 . 2 . Botnet 9 | . 7 . 2 . Operators 1 | . 1 . . . Sabotage 1 | . 1 . . . Search 1 | . 1 . . . Fabricators . | . . . . . Repair Stations . | . . . . . Recycling Units 2 | . 2 . . . Tunnel 2 | . 2 . . . Scanalyzers . | . . . . . Garrison Access . | . . . . . Data Cores Recovered 1 | . . . 1 . Used . | . . . . . Hacking Detections 12 | . 8 . 2 2 Full Trace Events 7 | . 5 . . 2 Feedback Events 1 | . 1 . . . Corruption 1 | . 1 . . . Feedback Blocked . | . . . . . Robot Schematics Acquired 4 | . 4 . . . Robots Built . | . . . . . Authchips . | . . . . . Time . | . . . . . Total Robot Build Rating . | . . . . . Part Schematics Acquired . | . . . . . Parts Built . | . . . . . Authchips . | . . . . . Time . | . . . . . Total Part Build Rating . | . . . . . Parts Repaired 2 | . 2 . . . Time 52 | . 52 . . . Parts Recycled . | . . . . . Recycled Matter . | . . . . . Retrieved Matter . | . . . . . Retrieved Components 11 | . 11 . . . Parts Scanalyzed . | . . . . . Part Schematics Acquired . | . . . . . Parts Damaged . | . . . . . Bothacking | -11 -10 -10 -9 -8 ------------ Run | Yrd Mat Min Mat Mat Used RIF Installer . | . . . . . Robots Hacked . | . . . . . Non-combat . | . . . . . Combat . | . . . . . Robot Hacks Applied . | . . . . . Relay Couplers Released . | . . . . . Fabnet Peak Effective % . | . . . . . Robots Rewired 1 | . . . . 1 Allies Hacked . | . . . . . Hacks Repelled . | . . . . . Allies | -11 -10 -10 -9 -8 -------- Run | Yrd Mat Min Mat Mat Total Allies 5 | . . 4 . 1 Largest Group 3 | . . 3 1 1 Highest-Rated Group 40 | . . 40 31 16 Highest-Rated Ally 31 | . . 16 31 16 Total Orders . | . . . . . Ally Attacks 11 | . . 1 6 4 Total Damage 163 | . . 14 83 66 Kills 1 | . . . . 1 Allies Corrupted . | . . . . . Allies Melted . | . . . . . Intel | -11 -10 -10 -9 -8 ------- Run | Yrd Mat Min Mat Mat Robot Analysis Total 4 | . 1 . . 3 Derelict Logs Recovered . | . . . . . Drone Launches . | . . . . . Drone Recoveries . | . . . . . Exploration | -11 -10 -10 -9 -8 ------------- Run | Yrd Mat Min Mat Mat Turns Passed 3976 | 264 2585 284 420 423 Spaces Moved 2002 | 202 1219 224 138 219 Core 33 | 20 . . 2 11 Treads . | . . . . . Legs 1792 | 182 1219 224 136 31 Wheels . | . . . . . Hover 177 | . . . . 177 Flight . | . . . . . Fastest Speed 50 | 50 120 120 190 50 Average Speed 142 | 113 146 120 212 131 Slowest Speed 400 | 120 190 120 400 260 Overloaded Moves . | . . . . . Propulsion Burnouts . | . . . . . Robots Hopped . | . . . . . Cave-ins Triggered . | . . . . . Exploration Rate (%) 42 | 9 97 62 23 20 Regions Visited 4 Branch Regions 1 Pre-discovered Areas 2 | . 2 . . . Known Exits Taken . | . . . . . Unknown Exits Taken 4 | 1 1 1 1 . Scrap Searched . | . . . . . Spaces Dug . | . . . . . Terrain Destroyed 14 | . 14 . . . Melee . | . . . . . Projectile . | . . . . . AOE 14 | . 14 . . . Terrain Rammed . | . . . . . Walls Destroyed . | . . . . . Machines Disabled . | . . . . . Actions | -11 -10 -10 -9 -8 --------- Run | Yrd Mat Min Mat Mat Total 2935 | 227 1934 236 214 324 Wait 696 | . 603 6 30 57 Move 1998 | 201 1218 223 137 219 Hop . | . . . . . Pick Up 41 | 5 24 2 4 6 Fast Attach 13 | 1 6 . 3 3 Attach 21 | 5 5 . 4 7 Detach . | . . . . . Swap 12 | . 7 . 2 3 Drop 24 | . 13 2 5 4 Fire 108 | 5 53 2 29 19 Melee . | . . . . . Ram 3 | . . . . 3 Kick 16 | 10 5 1 . . Crush . | . . . . . Escape Stasis . | . . . . . Rewire 3 | . . . . 3 Trap . | . . . . . Miscellaneous . | . . . . . Route ------- -11/Scrapyard -10/Materials (discovered 6 exits: *Mat x3 / [*Min x2] / [*Sub]) -10/Mines -9/Materials -8/Materials History --------- Turn | Location | Event 6 | -11/Scrapyard | Discovered new exit (range 15) 265 | -11/Scrapyard | Entered Materials 304 | -10/Materials | Build established: Mutant 1200 | -10/Materials | Discovered new exit (range 3) 1375 | -10/Materials | Discovered new exit (range 11) 1974 | -10/Materials | Discovered new exit (range 7) 2107 | -10/Materials | Discovered new exit (range 8) 2166 | -10/Materials | Discovered new exit (range 16) 2481 | -10/Materials | Discovered new exit (range 7) 2567 | -10/Materials | Repaired Beam Cannon 2595 | -10/Materials | Repaired Aluminum Leg 2679 | -10/Materials | Central database locked down 2850 | -10/Materials | Entered Mines 2905 | -10/Mines | Build established: Scavenger-Mutant 3047 | -10/Mines | Assembled infested the area 3052 | -10/Mines | Assisted by bots powering up and referring to "LRC-V3" 3088 | -10/Mines | A weapon hastily lodged in a ceiling crevice suddenly fell to the ground 3105 | -10/Mines | Lost 3 allies 3125 | -10/Mines | Discovered new exit (range 8) 3128 | -10/Mines | Received a Mining Laser from a helpful Derelict 3134 | -10/Mines | Entered Materials 3134 | -9/Materials | Accompanied by 1 ally 3134 | -9/Materials | Evolved 2 slots: Utility x2 3453 | -9/Materials | Lost 3 parts (2n1w) 3543 | -9/Materials | Discovered new exit (range 4) 3554 | -9/Materials | Entered another Materials area 3554 | -8/Materials | Evolved 2 slots: Utility x2 3710 | -8/Materials | Build established: Hacker-Mutant 3934 | -8/Materials | Lost 5 parts (1p2n2w) 3962 | -8/Materials | Core integrity fell below 50% 3970 | -8/Materials | Core integrity fell below 20% 3977 | -8/Materials | Released all parts (3) 3977 | -8/Materials | Destroyed by G-47 Trooper with Particle Gun Last Messages --------------- 03952_ Lgt. Armor Plating destroyed. 03954_ Gravmag System destroyed. 03958_ Lgt. Armor Plating destroyed. 03964_ Critical hit (Burn: +37). 03964_ Cooling System destroyed. 03966_ U-05 Engineer lays Concrete. 03967_ Slammed into U-05 Engineer. 03967_ U-05 Engineer lays Concrete. 03968_ U-05 Engineer destroyed. 03968_ U-05 Engineer builds a Wall. 03970_ U-05 Engineer builds a Door. 03971_ Acquired 1 matter. 03971_ G-47 Trooper suffers critical hit (Burn). 03973_ U-05 Engineer lays Concrete. 03974_ U-05 Engineer builds a Wall. 03974_ U-05 Engineer lays Concrete. 03977_ Released Hacking Suite. 03977_ Released Med. Storage Unit. 03977_ U-05 Engineer lays Concrete. 03977_ U-05 Engineer builds a Wall. Map ----- +----------------------------------------------------+ | ??????????????????????????????????????#####??????? | | ??????????????????????????????????????# #??????? | | ??????????????????????????????????????# #??????? | | ??????????????????????????????????????# #??????? | | ???????????????????????????????######## #??????? | | ???????????????????????????????# # #??????? | | ???????????????????????????????# # #??????? | | ???????????????????????????????# " # #??????? | | ???????????????????????????????#""" # #??????? | | ???????????????????????????????#"" # #??????? | | ????????????????????????? ???#""" # ##?????? | | ????????????????????????? #??# "" + T#?????? | | ????????????????????????? #??#""" # ##?????? | | ????????????????????????? #??#""" # #??????? | | ??????????????????????##? #??#""" !# #??????? | | ????????????????###### #? #??# " # #??????? | | ???????????????? #? #??# # #??????? | | ????????????????" =[[## #??# # #####??? | | ??????????????#"Y =[!## #??######## !!#??? | | ??????????????#"" ] =[!## #?????????# !!#??? | | ??????????????# ## #?????????# #??? | | ??????????????# """ ## #?????????# #??? | | ??????????????# """ ## #??######## #??? | | ??????????????# """ ## #??# # ]!=#??? | | ??????????????# ## #??# """ # #####??? | | ??????????#########+#####@ #??# """ " % #??????? | | ??????????# # =%*![ #??# """ # #??????? | | ??????????# " # |!u g #??# """ # #??????? | | ??????????# T # g """ ##?# # #??????? | | ??????????# " /u gg """ T#?##+##### #??????? | | ??????????# Y#u """ ##??# #???# #??????? | | ??????????# """ # g """ #???# #???# #??????? | | ??????????# """ !# ##### ##### #??????? | | ??????????# """ # #??????? | | ??????????# # #??????? | | ??????????# """ # a #??????? | | ??????????# """ ####+########## ########??????? | | ??????????? """ # #???# !!#?????????? | | ????????????? # [ #???#= !!#?????????? | | ??????????????# ## #??## ==#?????????? | | ??????????????##?# """ "" #??#T ==#?????????? | | ?????????????????# """ """ #??## ]]#?????????? | | ?????????????????# """ """ #???# ]]#?????????? | | ?????????????????# """ """ #???# #####?????????? | | ?????????????????# #???# #?????????????? | | ?????????????????###########???# #?????????????? | | ???????????????????????????????# #?????????????? | | ???????????????????????????????# #?????????????? | | ???????????????????????????????# #?????????????? | | ???????????????????????????????# #?????????????? | +----------------------------------------------------+ Best States ------------- Heat Dissipation 53 Energy Generation 18 Energy Capacity 265 Matter Stores 300 Matter Capacity 300 Sight Range 16 Terrain Scan Density 10 Armor Coverage 300 Weapon Shielding 33 Evasion (%) 55 Offensive Hacking 20 Item Schematics ----------------- None Robot Schematics ------------------ G-34 Mercenary | -10/Materials | Hacked W-16 Scout | -10/Materials | Hacked S-10 Pest | -10/Materials | Hacked K-01 Serf | -10/Materials | Hacked Fabricated ------------ Nothing Alien Tech Used ----------------- None Achievements -------------- None Challenges ------------ None Game ------ Seed EtherialGammaSuite Manual? 0 Play Time 00:46:02 Cumulative 42.1 hours Start 2024.06.25 @ 01:06:26 End 2024.06.25 @ 01:49:11 Sessions 1 Manual Loads 0 Difficulty Rogue Special Mode None Game No. 74 Rogue 74 Adventurer 0 Explorer 0 Win Type - Total 0 Types 0/0/0/0/0/0/0/0/0 Lore% 24 Gallery% 30 Achievement% 27 Wizard Run 0 Options --------- Layout 0 ASCII 0 Keyboard 0 Movement Mouse Keybinds 0 Fullscreen 2 Font 18/SmallcapsGlow Map View 38x25 Zoom Use 94% Tactical HUD 1 Map Filters NONE Filters NONE Steam 1 RUN: 1c78e110-e20b-49ea-abdb-ef14f15eb039